bitfinex-derivatives/quotes_ETHF0:USTF0_20250530
["timestamp","ask_amount","ask_price","bid_price","bid_amount"]
[1748625645292,0.78322,2553.1,2553.0,4.46687073]
[1748625646198,0.78322,2553.1,2553.0,0.00587073]
[1748625646392,3.10052,2553.1,2553.0,0.00587073]
[1748625647297,11.89852,2553.1,2553.0,7.3e-07]
[1748625649199,13.05014681,2553.1,2553.0,7.3e-07]
[1748625649597,36.47814681,2553.1,2553.0,7.3e-07]
[1748625650598,35.32652,2553.1,2553.0,7.3e-07]
[1748625650899,0.78365,2551.7,2551.6,1.0728]
[1748625651298,0.78368,2551.6,2551.5,4.462]
[1748625651500,0.78368,2551.6,2551.5,5.7066]
[1748625652204,0.78374,2551.4,2551.3,0.00587073]
[1748625653098,1.79964,2551.4,2551.3,7.3e-07]
[1748625653605,6.79964,2551.4,2551.3,7.3e-07]
[1748625657004,1.79964,2551.4,2551.3,7.3e-07]
[1748625657203,6.79964,2551.4,2551.3,7.3e-07]
[1748625657603,8.07344,2551.4,2551.3,7.3e-07]
[1748625658105,3.07344,2551.4,2551.3,7.3e-07]
[1748625658307,7.52344,2551.4,2551.3,7.3e-07]
[1748625658804,2.05754,2551.4,2551.3,7.3e-07]
[1748625659002,0.78374,2551.4,2551.3,7.3e-07]
[1748625659496,0.78374,2551.4,2551.3,1.27570073]
[1748625659702,0.78374,2551.4,2551.3,7.3e-07]
[1748625660301,5.23474,2551.4,2551.3,7.3e-07]
[1748625661307,10.23474,2551.4,2551.3,7.3e-07]
[1748625661515,10.23474,2551.4,2548.2,12.11966079]
[1748625661516,3.2078,2550.8,2549.1,3.2078]
[1748625661810,0.78425,2549.8,2549.7,0.78424]
[1748625662012,3.2078,2550.1,2549.7,0.78425]
[1748625662311,3.2078,2550.1,2549.5,1.0309]
[1748625662514,0.78429,2549.6,2549.5,1.82108281]
[1748625662709,0.78428,2549.7,2549.6,0.78427]
[1748625663009,0.78427,2549.7,2549.6,0.78429]
[1748625663206,0.78427,2549.7,2549.6,5.0]
[1748625663410,0.78429,2549.6,2549.5,1.03678281]
[1748625663911,0.78429,2549.6,2549.5,6.03678281]
[1748625664208,3.21368281,2550.1,2549.5,6.03678281]
[1748625664399,0.78426,2549.7,2549.6,4.452]
[1748625664810,0.78426,2549.7,2549.6,9.452]
[1748625665405,0.78426,2549.7,2549.6,5.0]
[1748625666109,0.78429,2549.6,2549.5,5.48878281]
[1748625666504,0.78429,2549.6,2549.5,1.03678281]
[1748625666807,0.78429,2549.6,2549.5,0.00588281]
[1748625668006,3.2078,2549.8,2549.5,5.00588281]
[1748625668209,3.2078,2549.8,2549.5,0.00588281]
[1748625668408,3.2078,2549.8,2549.6,0.78427]
[1748625668609,3.2078,2549.8,2549.5,0.79019281]
[1748625668810,0.78429,2549.6,2549.5,0.00588281]
[1748625669016,0.78427,2549.7,2549.5,0.79019281]
[1748625669218,0.78429,2549.6,2549.5,0.79019281]
[1748625669513,0.78429,2549.6,2549.5,0.00588281]
[1748625669715,0.78429,2549.6,2549.5,5.00588281]
[1748625669914,3.2078,2549.8,2549.5,5.79020281]
[1748625670118,0.1961,2549.6,2549.5,0.79020281]
[1748625670318,0.1961,2549.6,2549.5,0.00588281]
[1748625670617,0.1961,2549.6,2549.5,0.79020281]
[1748625670817,0.1961,2549.6,2549.5,0.00588281]
[1748625671217,0.98039,2549.6,2549.5,0.00588281]
[1748625671423,0.1961,2549.6,2549.5,0.00588281]
[1748625671721,0.1961,2549.6,2549.5,5.79020281]
[1748625671923,0.00588281,2550.1,2550.0,0.78417]
[1748625672129,3.2078,2550.5,2550.4,0.78405]
[1748625672424,4.4616,2551.1,2550.4,3.2078]
[1748625672724,4.4616,2551.1,2550.5,0.78399]
[1748625672923,0.7839,2550.9,2550.4,3.2078]
[1748625673219,0.00588281,2550.9,2550.8,0.78393]
[1748625673522,0.00588281,2550.9,2550.7,4.453]
[1748625673716,0.78393,2550.8,2550.7,4.453]
[1748625674116,0.78979281,2550.9,2550.7,4.453]
[1748625674316,0.00588281,2550.9,2550.7,5.23694]
[1748625674517,0.00588281,2550.9,2550.7,5.23693]
[1748625675317,0.00588281,2550.9,2550.8,1.82243]
[1748625676223,0.00588281,2550.9,2550.8,1.0385]
[1748625676522,0.78399,2550.6,2550.5,1.0391]
[1748625676726,0.00588281,2550.9,2550.2,4.453]
[1748625676727,0.78404,2550.5,2550.3,1.0385]
[1748625676925,0.78401,2550.6,2550.3,1.0385]
[1748625677126,3.99177,2550.7,2550.4,0.78402]
[1748625677323,0.00588281,2550.9,2550.7,0.78395]
[1748625677524,0.00588281,2550.9,2550.6,4.453]
[1748625677726,0.00588281,2550.9,2550.8,0.78393]
[1748625677932,0.00588281,2550.9,2550.7,0.78393]
[1748625678122,0.78978281,2550.9,2550.6,5.23697]
[1748625678426,0.00588281,2550.9,2550.7,0.78393]
[1748625678627,0.00588281,2550.9,2550.8,0.78393]
[1748625679126,0.00588281,2550.9,2550.8,5.78393]
[1748625679326,0.00588281,2550.9,2550.8,7.08163]
[1748625680824,0.78978281,2550.9,2550.8,1.2977]
[1748625681236,0.00588281,2550.9,2550.8,2.08163]
[1748625684433,0.00588281,2550.9,2550.8,1.2977]
[1748625684732,0.00588281,2550.9,2550.8,5.7497]
[1748625684925,0.78978281,2550.9,2550.8,5.7497]
[1748625685130,0.00588281,2550.9,2550.8,5.7497]
[1748625685527,0.78978281,2550.9,2550.8,4.452]
[1748625685730,2.06558281,2550.9,2550.8,4.452]
[1748625686137,0.78405,2550.4,2550.3,43.975]
[1748625686331,3.2078,2550.5,2549.9,3.2078]
[1748625686537,1.2758,2550.3,2550.0,5.23616]
[1748625686740,1.2758,2550.3,2550.2,0.78411]
[1748625686937,1.2758,2550.3,2550.0,4.452]
[1748625687234,0.78414,2550.2,2550.0,4.452]
[1748625687434,1.3158,2550.1,2550.0,5.23617]
[1748625687638,2.09994,2550.1,2550.0,4.452]
[1748625687837,1.3158,2550.1,2550.0,4.452]
[1748625688029,1.3158,2550.1,2550.0,5.23617]
[1748625688331,3.2078,2550.4,2550.0,4.452]
[1748625688537,0.78412,2550.2,2550.0,5.23617]
[1748625688736,1.3158,2550.1,2550.0,5.23617]
[1748625689029,5.30774,2550.1,2550.0,4.452]
[1748625689831,4.5236,2550.1,2550.0,5.23617]
[1748625690035,3.2078,2550.1,2550.0,5.23617]
[1748625690738,3.2078,2550.1,2550.0,4.452]
[1748625691039,3.2078,2550.1,2550.0,5.23617]
[1748625691230,0.78411,2550.2,2550.0,5.23617]
[1748625691431,4.5236,2550.4,2550.0,4.452]
[1748625691626,1.2621,2550.1,2550.0,5.23617]
[1748625691834,2.0462,2550.3,2550.1,0.78414]
[1748625692039,2.0462,2550.3,2550.0,4.452]
[1748625692040,1.2621,2550.3,2550.0,5.23616]
[1748625692235,0.78414,2550.1,2550.0,4.452]
[1748625692543,3.2078,2550.1,2549.9,4.442]
[1748625692838,3.05737,2550.0,2549.9,4.442]
[1748625695145,3.05737,2550.0,2549.9,5.22621]
[1748625695336,3.05737,2550.0,2549.9,4.442]
[1748625701252,0.7843,2549.6,2549.5,4.44888281]
[1748625701545,3.9921,2549.6,2549.5,4.44888281]
[1748625702147,3.97746426,2549.6,2549.5,0.00588281]
[1748625702341,5.21116426,2549.6,2549.5,0.79021281]
[1748625702539,1.0111,2550.0,2549.6,1.96074]
[1748625702747,0.78411,2550.3,2550.2,0.7841]
[1748625703045,6.4926,2550.6,2550.1,4.443]
[1748625703246,0.78409,2550.3,2550.2,0.78409]
[1748625703547,0.78409,2550.3,2550.1,5.22712]
[1748625703748,0.78409,2550.3,2550.2,1.2961]
[1748625703946,0.78409,2550.3,2550.2,2.08021]
[1748625704144,0.78409,2550.3,2550.2,1.2961]
[1748625704445,0.78408,2550.3,2550.2,1.2961]
[1748625704644,8.4526,2550.6,2550.2,1.2961]
[1748625704843,0.78408,2550.3,2550.2,1.2961]
[1748625705646,0.78408,2550.3,2550.0,4.443]
[1748625705647,0.78415,2550.1,2550.0,4.443]
[1748625706452,1.80225,2550.1,2550.0,4.443]
[1748625706653,0.78415,2550.1,2550.0,4.443]
[1748625706847,0.78415,2550.1,2550.0,5.7365]
[1748625708052,0.78423,2549.9,2549.6,4.1933]
[1748625708256,1.96031,2550.2,2549.7,4.443]
[1748625708448,1.2725,2550.1,2549.7,5.7365]
[1748625708648,0.78422,2549.9,2549.7,5.7365]
[1748625708849,1.2725,2550.1,2549.7,5.7365]
[1748625709053,0.78419,2550.0,2549.7,5.7365]
[1748625709251,0.78421,2549.9,2549.8,0.78423]
[1748625709454,0.7842,2550.0,2549.7,5.7365]
[1748625709655,1.2725,2550.1,2549.8,0.78422]
[1748625709857,0.78421,2549.9,2549.7,6.52075]
[1748625710258,0.78424,2549.8,2549.7,6.52075]
[1748625710458,0.78423,2549.9,2549.7,6.52075]
[1748625710758,0.7842,2550.0,2549.7,5.7365]
[1748625710956,0.78418,2550.0,2549.9,0.78419]
[1748625711462,1.2725,2550.1,2550.0,0.78418]
[1748625711664,0.78417,2550.1,2549.9,0.78419]
[1748625711861,0.78417,2550.1,2549.8,1.226]
[1748625712066,0.78417,2550.1,2550.0,0.78418]
[1748625712362,0.78413,2550.2,2550.1,0.78415]
[1748625712566,4.5379,2550.3,2550.2,0.78411]
[1748625712763,3.99188,2550.3,2550.2,0.78411]
[1748625712960,3.99188,2550.3,2550.2,1.2393]
[1748625713362,0.78411,2550.2,2550.1,4.443]
[1748625714063,0.78411,2550.2,2550.1,5.22715]
[1748625714266,3.9919,2550.3,2550.1,4.443]
[1748625714859,1.95997,2550.7,2550.2,3.2078]
[1748625714860,3.2078,2550.7,2550.2,3.2078]
[1748625715068,3.2078,2550.7,2550.6,0.78399]
[1748625715256,3.2078,2550.7,2550.6,4.443]
[1748625715453,3.99176,2550.7,2550.6,4.443]
[1748625715868,3.4038,2550.7,2550.6,5.22699]
[1748625716065,0.00588281,2550.9,2550.8,0.78393]
[1748625716467,0.00588281,2550.9,2550.8,5.78393]
[1748625716669,0.00588281,2550.9,2550.8,10.00583]
[1748625717768,0.00588281,2550.9,2550.8,4.2219]
[1748625717963,0.00588281,2550.9,2550.8,5.00583]
[1748625718666,0.00588281,2550.9,2550.8,4.2219]
[1748625718866,0.00588281,2550.9,2550.8,5.00583]
[1748625719073,0.00588281,2550.9,2550.8,6.23493]
[1748625720475,0.78404,2550.5,2550.3,1.81848]
[1748625720675,0.78404,2550.5,2550.4,5.6591]
[1748625720978,0.78401,2550.6,2550.4,6.44314]
[1748625721281,0.78401,2550.6,2550.5,0.78402]
[1748625721483,0.78398,2550.7,2550.4,5.6591]
[1748625721783,0.78398,2550.7,2550.5,0.784]
[1748625721991,0.00588281,2550.9,2550.8,0.78393]
[1748625722179,1.95929,2551.6,2551.1,0.78381]
[1748625722180,2.362,2551.6,2551.1,0.78381]
[1748625722481,0.78378,2551.3,2551.2,4.43]
[1748625722680,0.78384,2551.1,2551.0,1.0021]
[1748625722871,4.5201,2551.4,2551.0,5.4321]
[1748625723075,0.78382,2551.2,2551.0,6.21595]
[1748625723278,0.78379,2551.3,2551.1,0.78382]
[1748625723481,0.78379,2551.3,2551.1,1.3081]
[1748625723675,0.78379,2551.3,2551.1,2.09192]
[1748625723874,5.30387,2551.4,2551.2,0.78381]
[1748625724076,5.30387,2551.4,2551.2,1.2426]
[1748625724274,5.30387,2551.4,2551.2,2.02639]
[1748625724475,0.78378,2551.3,2551.2,1.2426]
[1748625724680,5.30385,2551.4,2551.3,0.78378]
[1748625724882,3.2078,2551.4,2551.3,0.78378]
[1748625725885,3.2078,2551.4,2551.2,1.2426]
[1748625726086,3.99156,2551.4,2551.2,2.02639]
[1748625726282,3.99156,2551.4,2551.2,1.2426]
[1748625726283,0.78378,2551.3,2551.2,1.2426]
[1748625726587,0.78384,2551.1,2551.0,5.4321]
[1748625728085,3.99164,2551.1,2551.0,4.43]
[1748625730576,0.78411,2550.3,2550.2,0.78409]
[1748625730779,0.78408,2550.4,2550.3,0.78405]
[1748625730979,0.78401,2550.6,2550.5,0.78399]
[1748625731185,2.04771,2550.6,2550.5,0.78399]
[1748625731384,4.2058,2550.7,2550.6,0.78399]
[1748625731688,1.0409,2551.3,2550.6,4.429]
[1748625731689,4.4715,2551.0,2550.6,4.429]
[1748625731889,5.25539,2551.0,2550.8,0.78392]
[1748625732187,4.4715,2551.0,2550.8,0.78392]
[1748625732388,0.7839,2550.9,2550.7,1.76814]
[1748625732788,0.78393,2550.8,2550.7,0.9842]
[1748625733284,0.78396,2550.7,2550.6,4.429]
[1748625733485,0.78392,2550.9,2550.7,0.78396]
[1748625733678,2.13552,2550.9,2550.7,0.78396]
[1748625734187,2.13551,2550.9,2550.7,0.78394]
[1748625734388,1.3516,2550.9,2550.7,2.01564]
[1748625734689,0.78393,2550.8,2550.7,1.2317]
[1748625735284,0.998,2551.2,2551.0,0.78385]
[1748625735583,1.78182,2551.2,2551.1,4.43]
[1748625735788,1.95975,2551.0,2550.4,4.28728281]
[1748625735990,0.7839,2550.9,2550.8,4.43]
[1748625737380,0.78402,2550.5,2550.4,0.00588281]
[1748625737580,3.99182,2550.5,2550.4,2.81e-06]
[1748625737786,8.99182,2550.5,2550.4,2.81e-06]
[1748625740291,3.99182,2550.5,2550.4,2.81e-06]
[1748625740793,3.2078,2550.5,2550.4,2.81e-06]
[1748625740992,1.9807,2550.6,2550.5,0.78402]
[1748625741194,3.2078,2550.9,2550.8,0.78393]
[1748625741391,5.195,2551.3,2550.8,4.43]
[1748625741590,4.99728,2551.3,2551.2,0.78381]
[1748625741886,4.99728,2551.3,2551.2,4.43]
[1748625742194,3.2078,2551.3,2551.2,4.43]
[1748625742488,3.99158,2551.3,2551.2,4.43]
[1748625743692,3.99158,2551.3,2551.0,4.43]
[1748625743693,0.78384,2551.1,2551.0,4.43]
[1748625744494,1.76114,2551.1,2551.0,4.43]
[1748625744697,0.78396,2550.7,2550.6,4.43]
[1748625744898,3.99176,2550.7,2550.6,4.43]
[1748625746595,0.78402,2550.5,2550.4,2.81e-06]
[1748625747097,0.78402,2550.5,2550.4,4.43000281]
[1748625747698,0.78402,2550.5,2550.4,2.81e-06]
[1748625747894,5.78402,2550.5,2550.4,2.81e-06]
[1748625748599,0.78402,2550.5,2550.4,2.81e-06]
[1748625750598,3.2078,2551.0,2550.4,9.17000281]
[1748625750799,0.78397,2550.7,2550.5,1.3498]
[1748625751094,0.78397,2550.7,2550.6,4.418]
[1748625751796,0.78399,2550.6,2550.5,1.3498]
[1748625752100,0.78399,2550.6,2550.5,5.7678]
[1748625753296,0.78402,2550.5,2550.4,3.20780281]
[1748625753497,5.24992,2550.5,2550.4,2.81e-06]
[1748625754393,0.78402,2550.5,2550.4,2.81e-06]
[1748625754990,2.12532,2550.5,2550.4,2.81e-06]
[1748625756101,0.78402,2550.6,2550.4,0.78405281]
[1748625756301,2.95207,2550.9,2550.4,0.78405281]
[1748625756302,1.3413,2550.8,2550.5,4.418]
[1748625756503,6.12132,2551.0,2550.5,7.54351]
[1748625756700,6.12132,2551.0,2550.5,8.71954]
[1748625756701,3.2078,2551.0,2550.5,8.71954]
[1748625756901,3.99169,2551.0,2550.5,6.7595]
[1748625757107,0.78391,2550.9,2550.5,6.7595]
[1748625757401,3.2078,2551.0,2550.7,0.78394]
[1748625757701,0.7839,2550.9,2550.8,1.2701]
[1748625757893,0.7839,2550.9,2550.8,5.6881]
[1748625758804,3.2078,2551.4,2550.8,8.8959]
[1748625759005,0.78379,2551.3,2550.8,10.85572]
[1748625759301,3.2078,2551.4,2551.2,0.78381]
[1748625759501,3.99155,2551.4,2551.3,5.3685]
[1748625759706,5.25085,2551.4,2551.3,5.3685]
[1748625760000,5.25085,2551.4,2550.7,0.78394]
[1748625760001,0.78378,2551.3,2550.7,0.78394]
[1748625760206,0.78392,2550.9,2550.8,4.418]
[1748625760503,1.2593,2551.3,2550.8,4.418]
[1748625760504,3.21877,2551.3,2550.8,4.418]
[1748625760707,0.78389,2551.0,2550.9,1.2947]
[1748625760905,0.7839,2550.9,2550.8,4.418]
[1748625761304,2.2731,2551.3,2550.8,4.418]
[1748625761502,0.78389,2551.0,2550.9,1.2947]
[1748625762011,0.78386,2551.1,2550.9,1.2947]
[1748625762199,0.78387,2551.0,2550.9,1.2947]
[1748625762601,0.7839,2550.9,2550.8,4.418]
[1748625763205,0.7839,2550.9,2550.8,4.417]
[1748625765005,1.2559,2551.0,2550.8,4.417]
[1748625765307,0.78388,2551.0,2550.9,0.7839]
[1748625765507,0.7839,2550.9,2550.8,4.417]
[1748625765803,0.7839,2550.9,2550.8,5.20093]
[1748625766003,0.7839,2550.9,2550.8,4.417]
[1748625766909,0.7839,2550.9,2550.8,5.7022]
[1748625767110,0.7839,2550.9,2550.8,6.48613]
[1748625767408,0.7839,2550.9,2550.8,5.7022]
[1748625768904,0.7839,2550.9,2550.8,4.417]
[1748625770108,3.2078,2551.1,2551.0,0.78387]
[1748625770312,0.78387,2551.0,2550.9,0.78388]
[1748625770511,0.78387,2551.0,2550.9,2.09908]
[1748625771011,0.78385,2551.1,2551.0,0.78386]
[1748625771213,0.78385,2551.1,2551.0,1.0056]
[1748625772908,0.78385,2551.1,2551.0,1.78947]
[1748625773208,0.78385,2551.1,2551.0,2.3167]
[1748625774212,0.78385,2551.1,2551.0,1.0056]
[1748625775315,0.78385,2551.1,2551.0,1.78947]
[1748625775611,0.78385,2551.1,2551.0,1.0056]
[1748625776008,2.04631,2551.2,2551.0,1.0056]
[1748625776217,5.16718,2551.4,2551.0,1.0056]
[1748625776512,0.78384,2551.1,2551.0,1.78945]
[1748625777110,3.2078,2551.4,2551.3,0.78378]
[1748625777410,0.00588281,2551.5,2551.4,0.78375]
[1748625777706,0.78959281,2551.5,2551.4,1.3387]
[1748625778113,0.00588281,2551.5,2551.3,4.417]
[1748625778303,1.30558281,2551.5,2551.3,4.417]
[1748625778510,1.30558281,2551.5,2551.4,0.78375]
[1748625779113,2.08930281,2551.5,2551.4,0.78375]
[1748625779313,0.78375,2551.4,2551.3,5.20075]
[1748625779512,2.08931281,2551.5,2551.4,0.78375]
[1748625779914,2.08929281,2551.5,2551.4,0.78375]
[1748625780812,0.00588281,2551.5,2551.4,0.78375]
[1748625781017,0.00588281,2551.5,2551.4,2.11995]
[1748625783020,0.987,2552.2,2551.4,45.8442]
[1748625783314,0.78365,2551.7,2551.6,0.78368]
[1748625783509,0.78365,2551.7,2551.5,4.405]
[1748625783822,0.78365,2551.7,2551.5,6.44619]
[1748625784013,1.36158281,2551.9,2551.5,5.6625]
[1748625784320,0.78368,2551.6,2551.5,5.6625]
[1748625784515,1.95908,2551.8,2551.4,39.508]
[1748625784811,0.78372,2551.5,2551.4,43.913]
[1748625785116,0.78384,2551.1,2551.0,5.40221441]
[1748625785313,0.78384,2551.1,2551.0,9.80721441]
[1748625785618,0.78384,2551.1,2551.0,11.80721441]
[1748625786615,0.97974,2551.1,2551.0,6.405]
[1748625788315,0.1959,2551.1,2551.0,7.18887]
[1748625788619,0.97974,2551.1,2551.0,6.405]
[1748625789416,2.20424,2551.1,2551.0,6.405]
[1748625790417,0.1959,2551.1,2551.0,6.405]
[1748625790624,2.20424,2551.1,2551.0,6.405]
[1748625793423,0.1959,2551.1,2551.0,6.405]
[1748625793628,0.9407,2551.4,2551.3,0.78378]
[1748625794122,4.2111,2551.8,2551.5,0.78372]
[1748625794327,2.19868281,2551.9,2551.8,0.78362]
[1748625794724,2.98229281,2551.9,2551.6,5.6647]
[1748625794926,2.19868281,2551.9,2551.8,0.78362]
[1748625795721,0.78365,2551.7,2551.6,5.6647]
[1748625795926,2.19868281,2551.9,2551.6,5.6647]
[1748625796121,0.00588281,2551.9,2551.8,0.78362]
[1748625796522,0.00588281,2551.9,2551.8,1.42852]
[1748625796722,0.00588281,2551.9,2551.8,9.63632]
[1748625796922,0.00588281,2551.9,2551.8,10.55452]
[1748625797822,3.2078,2552.4,2551.9,0.78359]
[1748625798024,3.2078,2552.4,2552.3,0.78347]
[1748625798625,2.05882,2552.5,2552.3,0.78346]
[1748625798826,2.05882,2552.5,2552.4,4.405]
[1748625799527,1.2754,2552.5,2552.4,4.405]
[1748625800130,2.05881,2552.5,2552.4,4.405]
[1748625800427,1.2754,2552.5,2552.1,3.21368281]
[1748625800628,1.2754,2552.5,2552.2,4.405]
[1748625800825,0.78347,2552.3,2552.2,4.405]
[1748625801630,1.2754,2552.5,2552.2,4.405]
[1748625801828,2.05883,2552.5,2552.3,0.78345]
[1748625802031,2.05882,2552.5,2552.3,0.78346]
[1748625802431,1.2754,2552.5,2552.2,4.405]
[1748625802731,1.2754,2552.5,2552.4,0.78344]
[1748625803526,1.2754,2552.5,2552.2,5.18849]
[1748625803829,0.78346,2552.4,2552.2,5.18849]
[1748625804029,1.2454,2552.3,2552.2,5.18849]
[1748625805629,1.2454,2552.5,2552.3,0.78345]
[1748625805931,1.2454,2552.5,2552.4,0.78344]
[1748625806234,2.02881,2552.5,2552.2,5.18848]
[1748625806432,1.2454,2552.5,2552.4,0.78344]
[1748625807526,2.02882,2552.5,2552.3,0.78345]
[1748625807928,2.02883,2552.5,2552.2,5.18848]
[1748625808133,1.2454,2552.5,2552.3,0.78347]
[1748625808332,1.2454,2552.5,2552.4,0.78344]
[1748625809838,1.76013281,2552.7,2552.4,0.78344]
[1748625809839,0.97678281,2552.7,2552.6,0.78338]
[1748625810026,0.97678281,2552.7,2552.6,5.18738]
[1748625810431,0.00588281,2552.7,2552.6,5.18738]
[1748625810632,0.00588281,2552.7,2552.6,11.41098]
[1748625810935,0.6717,2553.1,2553.0,0.78325]
[1748625811136,1.9975,2553.1,2553.0,5.17425]
[1748625811839,0.6717,2553.1,2553.0,5.17425]
[1748625812138,1.3258,2553.4,2553.3,0.78316]
[1748625812339,2.75233,2553.4,2553.2,0.78318]
[1748625812529,2.75233,2553.4,2553.0,4.391]
[1748625812530,1.9692,2553.4,2553.0,4.391]
[1748625812735,1.9692,2553.4,2553.2,0.78318]
[1748625812936,2.75233,2553.4,2553.2,0.78318]
[1748625813135,1.95754,2553.8,2553.2,0.78318]
[1748625813136,3.2078,2553.9,2553.3,3.2078]
[1748625813437,3.14829057,2553.9,2553.8,0.783]
[1748625813638,3.14829057,2553.9,2553.8,5.173]
[1748625814034,3.14829057,2553.9,2553.3,3.87418281]
[1748625814336,1.3444,2553.8,2553.4,5.6577]
[1748625814535,3.2078,2553.6,2553.5,4.39]
[1748625814737,3.99088,2553.6,2553.5,4.39]
[1748625818436,3.99088,2553.6,2553.5,5.17311]
[1748625818637,0.78308,2553.6,2553.5,4.39]
[1748625819033,0.78306,2553.7,2553.5,5.17309]
[1748625819241,2.03098,2553.6,2553.5,4.39]
[1748625820943,2.03098,2553.6,2553.5,5.17311]
[1748625821146,1.2479,2553.6,2553.5,5.17311]
[1748625822041,2.03098,2553.6,2553.5,4.39]
[1748625822943,5.23878,2553.6,2553.5,4.39]
[1748625825546,5.23878,2553.6,2553.5,3.3711]
[1748625825749,0.78333,2552.9,2552.8,0.7833]
[1748625826044,0.78325,2553.1,2553.0,0.78323]
[1748625826245,3.2078,2553.2,2553.1,0.78323]
[1748625826635,2.07425,2553.4,2553.3,0.78317]
[1748625826835,1.2911,2553.4,2553.3,5.17217]
[1748625827248,3.2078,2553.5,2553.4,0.78314]
[1748625827449,3.99091,2553.5,2553.3,4.389]
[1748625827745,0.78314,2553.4,2553.2,0.78317]
[1748625827944,0.78314,2553.4,2553.3,4.389]
[1748625828142,2.13464,2553.4,2553.3,4.389]
[1748625828846,2.79674,2553.4,2553.3,4.389]
[1748625829546,0.78314,2553.4,2553.3,4.389]
[1748625830740,0.7832,2553.2,2553.1,0.00588281]
[1748625831048,0.7832,2553.2,2553.1,4.39488281]
[1748625832848,1.3438,2553.4,2553.1,4.39488281]
[1748625833051,0.7832,2553.2,2553.1,4.39488281]
[1748625833749,1.3438,2553.4,2553.1,4.39488281]
[1748625833949,0.7832,2553.2,2553.1,5.17811281]
[1748625834343,0.7832,2553.2,2553.1,4.39488281]
[1748625834848,0.7832,2553.2,2553.1,5.17811281]
[1748625835049,0.7832,2553.2,2553.1,4.39488281]
[1748625835344,3.991,2553.2,2553.1,0.00588281]
[1748625837853,8.991,2553.2,2553.1,2.81e-06]
[1748625838054,3.991,2553.2,2553.1,2.81e-06]
[1748625839854,8.991,2553.2,2553.1,2.81e-06]
[1748625840253,10.9413,2553.2,2553.1,2.81e-06]
[1748625844359,10.9413,2553.2,2552.0,4.376]
[1748625844360,0.78354,2552.1,2552.0,4.376]
[1748625844653,3.99134,2552.1,2552.0,4.376]
[1748625844855,0.78363,2551.8,2551.7,5.0146]
[1748625845063,3.99143,2551.8,2551.7,4.376]
[1748625848455,0.78369,2551.6,2551.5,0.00588281]
[1748625849660,0.78369,2551.6,2551.5,1.35498281]
[1748625851171,0.78369,2551.6,2551.5,5.73198281]
[1748625851371,0.78369,2551.6,2551.5,4.38288281]
[1748625851971,0.78369,2551.6,2551.5,0.00588281]
[1748625854867,0.78369,2551.6,2551.5,2.81e-06]
[1748625855062,5.78369,2551.6,2551.5,2.81e-06]
[1748625855267,5.78369,2551.6,2551.0,2.0]
[1748625855268,0.78384,2551.1,2551.0,0.01151281]
[1748625855460,3.99164,2551.1,2551.0,2.81e-06]
[1748625859069,3.99164,2551.1,2551.0,1.24090281]
[1748625861773,0.78384,2551.1,2551.0,1.24090281]
[1748625862671,1.95938,2551.4,2551.0,1.24090281]
[1748625862871,0.78384,2551.1,2551.0,1.24090281]
[1748625863272,0.78382,2551.2,2551.0,6.24090281]
[1748625863478,0.78384,2551.1,2551.0,1.24090281]
[1748625863975,0.78384,2551.1,2551.0,6.24090281]
[1748625864176,0.78384,2551.1,2551.0,5.61990281]
[1748625864376,0.78384,2551.1,2551.0,1.24090281]
[1748625864575,0.78384,2551.1,2551.0,4.37900281]
[1748625865378,0.78384,2551.1,2551.0,5.64040281]
[1748625865679,0.78384,2551.1,2551.0,4.37900281]
[1748625866377,2.09624,2551.1,2551.0,4.37900281]
[1748625869880,2.09624,2551.1,2551.0,2.81e-06]
[1748625878085,0.78384,2551.1,2551.0,2.81e-06]
[1748625878682,0.78384,2551.1,2551.0,0.67110281]
[1748625879192,0.78384,2551.1,2551.0,2.01710281]
[1748625879384,0.78384,2551.1,2551.0,2.81e-06]
[1748625879589,2.02164,2551.1,2551.0,4.36500281]
[1748625880486,2.02164,2551.1,2551.0,2.81e-06]
[1748625880990,2.65534,2551.1,2551.0,2.81e-06]
[1748625882283,2.02164,2551.1,2551.0,2.81e-06]
[1748625887194,5.22944,2551.1,2551.0,2.81e-06]
[1748625894096,3.99164,2551.1,2551.0,2.81e-06]
[1748625894892,3.99164,2551.1,2551.0,1.25610281]
[1748625895094,0.78382,2551.2,2551.1,0.78383]
[1748625895293,0.78382,2551.2,2551.0,6.25610281]
[1748625895294,0.78384,2551.1,2551.0,2.81e-06]
[1748625895486,0.78384,2551.1,2551.0,4.36500281]
[1748625895487,3.99164,2551.1,2551.0,4.36500281]
[1748625896099,5.31674,2551.1,2551.0,4.36500281]
[1748625897197,5.31674,2551.1,2551.0,2.81e-06]
[1748625899295,10.31674,2551.1,2551.0,2.81e-06]
[1748625900092,14.11474,2551.1,2551.0,2.81e-06]
[1748625900395,0.7839,2550.9,2550.8,5.62e-06]
[1748625900699,0.78409,2550.3,2550.2,49.25621441]
[1748625901003,3.99189,2550.3,2550.2,49.25621441]
[1748625901707,3.99189,2550.3,2550.2,43.854]
[1748625901890,5.29749,2550.3,2550.2,43.854]
[1748625903198,5.29749,2550.3,2550.2,44.63812]
[1748625903199,3.99189,2550.3,2550.2,44.63812]
[1748625903502,3.99189,2550.3,2550.2,43.854]
[1748625903698,3.99189,2550.3,2550.2,44.63812]
[1748625903899,0.78409,2550.3,2550.2,44.63812]
[1748625904096,0.78409,2550.3,2550.2,43.854]
[1748625905798,3.99189,2550.3,2550.2,39.489]
[1748625905998,3.99189,2550.3,2550.2,43.837]
[1748625906899,3.99189,2550.3,2550.2,4.348]
[1748625907106,0.78415,2550.1,2550.0,0.00588281]